bitfinex/quotes_BTCUSD_20241022
["timestamp","ask_amount","ask_price","bid_price","bid_amount"]
[1729602539483,0.0044722,66938.0,66937.0,0.18740146]
[1729602539697,0.0044722,66938.0,66937.0,0.18964227]
[1729602539698,0.1538632,66938.0,66937.0,0.18964227]
[1729602540151,0.0044722,66938.0,66937.0,0.18964227]
[1729602540590,0.1538632,66938.0,66937.0,0.18964227]
[1729602541298,0.0044722,66938.0,66937.0,0.18964227]
[1729602541514,0.1538632,66938.0,66937.0,0.18964227]
[1729602541990,0.0044722,66938.0,66937.0,0.18964227]
[1729602542219,0.1538632,66938.0,66937.0,0.18964227]
[1729602543703,0.0044722,66938.0,66937.0,0.18964227]
[1729602545192,0.0044722,66938.0,66937.0,0.1765844]
[1729602545672,0.0044722,66938.0,66937.0,0.1874852]
[1729602549272,0.0044722,66938.0,66937.0,0.3368792]
[1729602549490,0.0044722,66938.0,66937.0,0.43266591]
[1729602550174,0.0044722,66938.0,66937.0,0.4304251]
[1729602550822,0.0044722,66938.0,66937.0,0.33463839]
[1729602552788,0.0044722,66938.0,66937.0,0.18524439]
[1729602553216,0.0044722,66938.0,66937.0,0.33463839]
[1729602554301,0.0044722,66938.0,66937.0,0.18524439]
[1729602554512,0.0969722,66938.0,66937.0,0.18524439]
[1729602554727,0.2463632,66938.0,66937.0,0.18524439]
[1729602554941,0.3222632,66938.0,66937.0,0.17434359]
[1729602556291,0.3212632,66938.0,66937.0,0.16234359]
[1729602556499,0.3202632,66938.0,66937.0,0.15734359]
[1729602556715,0.3202632,66938.0,66937.0,0.00838444]
[1729602556716,0.51375043,66938.0,66937.0,0.00838444]
[1729602556943,0.33317383,66938.0,66937.0,0.00038444]
[1729602557155,0.49760174,66938.0,66937.0,0.00038444]
[1729602557382,5.08760602,66938.0,66937.0,0.00038444]
[1729602557662,5.21239982,66938.0,66937.0,0.00038444]
[1729602557881,5.21239982,66938.0,66915.0,0.02422234]
[1729602557882,0.32089193,66926.0,66925.0,0.2237587]
[1729602558096,0.40169193,66926.0,66925.0,0.2237587]
[1729602558302,0.50059193,66926.0,66925.0,0.23476384]
[1729602558515,0.14942,66925.0,66919.0,0.00224153]
[1729602558931,0.14942,66925.0,66924.0,0.00077735]
[1729602559593,5.01601,66925.0,66924.0,0.00077735]
[1729602559812,5.19402032,66925.0,66924.0,0.00077735]
[1729602560259,5.19402032,66925.0,66915.0,0.000845]
[1729602560260,0.440441,66916.0,66915.0,0.000845]
[1729602560479,5.02991963,66916.0,66915.0,0.000845]
[1729602560710,5.20139356,66916.0,66915.0,0.000845]
[1729602560921,5.24580127,66916.0,66915.0,0.000845]
[1729602561159,5.39476042,66916.0,66915.0,0.000845]
[1729602561380,5.35232212,66916.0,66915.0,0.000845]
[1729602561620,5.36418013,66916.0,66915.0,0.000845]
[1729602561842,5.37518013,66916.0,66915.0,0.001845]
[1729602562064,5.41954741,66916.0,66915.0,0.001845]
[1729602562310,5.37518013,66916.0,66915.0,0.001845]
[1729602562548,5.36132212,66916.0,66915.0,0.001845]
[1729602562766,5.22336297,66916.0,66915.0,0.002845]
[1729602563006,3.16577297,66916.0,66915.0,0.002845]
[1729602563438,3.15191493,66916.0,66915.0,0.002845]
[1729602565655,3.14691493,66916.0,66915.0,0.002845]
[1729602565900,0.452441,66916.0,66915.0,0.002845]
[1729602566122,0.171441,66916.0,66915.0,0.002845]
[1729602566339,0.022,66916.0,66915.0,0.002845]
[1729602566560,0.171441,66916.0,66915.0,0.002845]
[1729602566777,0.171441,66916.0,66915.0,0.01398023]
[1729602566985,0.171441,66916.0,66915.0,0.002845]
[1729602567206,0.022,66916.0,66915.0,0.15180415]
[1729602567421,0.022,66916.0,66915.0,0.15080415]
[1729602567422,0.011,66916.0,66915.0,0.15080415]
[1729602567636,0.003,66916.0,66915.0,0.14980415]
[1729602567854,0.003,66916.0,66915.0,0.16093938]
[1729602568069,0.149438,66917.0,66915.0,0.16093938]
[1729602568282,0.298851,66923.0,66915.0,0.16093938]
[1729602568283,0.149441,66916.0,66915.0,0.01198023]
[1729602568722,0.149441,66916.0,66915.0,0.000845]
[1729602568940,0.24530749,66916.0,66915.0,0.000845]
[1729602569160,0.153441,66916.0,66915.0,0.000845]
[1729602569392,0.150441,66916.0,66915.0,0.000845]
[1729602569846,0.151441,66916.0,66915.0,0.000845]
[1729602570310,0.40371493,66916.0,66915.0,0.000845]
[1729602570597,0.51338142,66916.0,66915.0,0.000845]
[1729602570815,0.40371493,66916.0,66915.0,0.000845]
[1729602572755,0.151441,66916.0,66915.0,0.000845]
[1729602573896,0.002,66916.0,66915.0,0.14980415]
[1729602574338,0.002,66916.0,66915.0,0.16093401]
[1729602574570,0.151441,66916.0,66915.0,0.16093401]
[1729602575020,0.002,66916.0,66915.0,0.16093401]
[1729602575875,0.151441,66916.0,66915.0,0.16093401]
[1729602576790,0.002,66916.0,66915.0,0.16093401]
[1729602577279,0.002,66916.0,66915.0,0.48185094]
[1729602577542,0.002,66916.0,66915.0,0.65628886]
[1729602577762,0.002,66916.0,66915.0,0.91236279]
[1729602577979,0.002,66916.0,66915.0,0.92236279]
[1729602578215,0.001,66916.0,66915.0,0.85088886]
[1729602578649,0.001,66916.0,66915.0,0.86488886]
[1729602578879,0.0014722,66938.0,66923.0,0.023]
[1729602579093,0.2237587,66928.0,66927.0,0.149416]
[1729602579325,0.1494,66934.0,66927.0,0.14895915]
[1729602579543,0.1494,66934.0,66929.0,0.149412]
[1729602579765,0.1494,66934.0,66932.0,0.00224103]
[1729602580007,0.1494,66934.0,66933.0,0.14895915]
[1729602580240,0.1494,66934.0,66933.0,0.15993411]
[1729602580924,0.1504,66934.0,66933.0,0.15993411]
[1729602581153,0.22434482,66934.0,66933.0,0.01097496]
[1729602581383,0.1494,66934.0,66933.0,0.01197496]
[1729602581607,0.1494,66934.0,66933.0,0.001]
[1729602582041,0.1504,66934.0,66933.0,0.001]
[1729602582256,0.1504,66934.0,66933.0,0.001825]
[1729602582464,0.1494,66934.0,66933.0,0.001825]
[1729602583325,0.1494,66934.0,66933.0,0.000825]
[1729602583544,0.1534,66934.0,66933.0,0.000825]
[1729602583757,0.1564,66934.0,66933.0,0.000825]
[1729602584006,0.1534,66934.0,66933.0,0.000825]
[1729602584205,0.1574,66934.0,66933.0,0.000825]
[1729602585501,0.33635837,66934.0,66933.0,0.000825]
[1729602586380,0.2332,66934.0,66933.0,0.000825]
[1729602597648,0.1574,66934.0,66933.0,0.000825]
[1729602598467,0.1534,66934.0,66933.0,0.000825]
[1729602599322,0.1494,66934.0,66933.0,0.000825]
[1729602600250,0.1494,66934.0,66933.0,0.01192067]
[1729602600526,0.1494,66934.0,66933.0,0.000825]
[1729602600664,0.1494,66934.0,66933.0,0.01192067]
[1729602600865,0.1494,66934.0,66933.0,0.000825]
[1729602601069,0.1494,66934.0,66933.0,0.01192067]
[1729602601276,0.1494,66934.0,66933.0,0.000825]
[1729602601456,0.1494,66934.0,66933.0,0.01192067]
[1729602601664,0.0014722,66938.0,66933.0,0.14978415]
[1729602601882,0.0014722,66938.0,66933.0,0.16087982]
[1729602601883,0.2237587,66935.0,66933.0,0.16087982]
[1729602602101,0.1494,66934.0,66933.0,0.16087982]
[1729602602536,0.0014722,66938.0,66937.0,0.224594]
[1729602602740,0.0014722,66938.0,66937.0,0.37355315]
[1729602602953,0.0014722,66938.0,66937.0,0.38461507]
[1729602603153,0.0014722,66938.0,66937.0,0.23522107]
[1729602603373,0.0014722,66938.0,66937.0,0.38461507]
[1729602604014,0.0014722,66938.0,66937.0,0.38661507]
[1729602604833,0.0014722,66938.0,66937.0,0.38461507]
[1729602605912,0.0014722,66938.0,66937.0,0.38761507]
[1729602606331,0.0014722,66938.0,66937.0,0.38461507]
[1729602606529,0.0024722,66938.0,66937.0,0.39661507]
[1729602607176,0.0024722,66938.0,66937.0,0.39361507]
[1729602607372,0.0024722,66938.0,66937.0,0.40161507]
[1729602607373,0.0034722,66938.0,66937.0,0.40161507]
[1729602608013,0.0034722,66938.0,66937.0,0.25222107]
[1729602608229,0.1528632,66938.0,66937.0,0.17702107]
[1729602608966,0.0034722,66938.0,66937.0,0.17702107]
[1729602610402,0.0034722,66938.0,66937.0,0.32641507]
[1729602611317,0.0034722,66938.0,66937.0,0.17702107]
[1729602611581,0.0034722,66938.0,66937.0,0.32641507]
[1729602612019,0.0034722,66938.0,66937.0,0.41671507]
[1729602615782,0.0034722,66938.0,66937.0,0.64621476]
[1729602616521,0.0024722,66938.0,66937.0,0.63821476]
[1729602617005,0.0024722,66938.0,66937.0,1.31321476]
[1729602617241,0.0024722,66938.0,66937.0,0.61321476]
[1729602617470,0.0024722,66938.0,66937.0,0.49171507]
[1729602617729,0.0034722,66938.0,66937.0,0.50271507]
[1729602620351,0.0034722,66938.0,66937.0,1.20271507]
[1729602622237,0.0034722,66938.0,66937.0,0.50271507]
[1729602622706,0.0034722,66938.0,66937.0,0.41465599]
[1729602623750,0.0034722,66938.0,66937.0,1.11465599]
[1729602624017,0.0034722,66938.0,66937.0,1.26361514]
[1729602625300,0.0034722,66938.0,66937.0,0.56361514]
[1729602625769,0.1528632,66938.0,66937.0,0.18526199]
[1729602625988,0.0034722,66938.0,66937.0,0.33465599]
[1729602626209,0.0034722,66938.0,66937.0,0.41235599]
[1729602626634,0.0034722,66938.0,66937.0,0.45235599]
[1729602629504,0.0034722,66938.0,66937.0,0.67611469]
[1729602629705,0.0034722,66938.0,66937.0,0.76078907]
[1729602629918,0.0034722,66938.0,66937.0,0.69201514]
[1729602630532,0.0034722,66938.0,66937.0,1.34201514]
[1729602631094,0.0034722,66938.0,66937.0,1.38857907]
[1729602631219,0.0034722,66938.0,66937.0,1.572053]
[1729602631426,0.0034722,66938.0,66937.0,2.27978601]
[1729602631631,0.0034722,66938.0,66937.0,2.05602731]
[1729602631886,0.0034722,66938.0,66937.0,2.04967414]
[1729602632299,0.001652,66954.0,66953.0,0.154358]
[1729602632651,0.001652,66954.0,66953.0,0.78134568]
[1729602632864,0.001652,66954.0,66953.0,0.78602017]
[1729602633074,0.001652,66954.0,66953.0,0.83257962]
[1729602633508,0.001652,66954.0,66953.0,0.80002017]
[1729602633714,0.001652,66954.0,66953.0,0.81402017]
[1729602633926,0.001652,66954.0,66953.0,0.80002017]
[1729602634113,0.001652,66954.0,66953.0,0.78602017]
[1729602634358,0.001652,66954.0,66953.0,0.81402017]
[1729602635802,0.001652,66954.0,66953.0,0.80002017]
[1729602636010,0.001652,66954.0,66953.0,0.78602017]
[1729602636231,0.001652,66954.0,66953.0,0.81402017]
[1729602638099,0.001652,66954.0,66953.0,0.64254624]
[1729602638917,0.001652,66954.0,66953.0,0.81402017]
[1729602639539,0.001652,66954.0,66953.0,0.81602017]
[1729602639745,0.001652,66954.0,66953.0,0.82602017]
[1729602640015,0.001652,66954.0,66953.0,0.87249764]
[1729602640271,0.001652,66954.0,66953.0,1.14397157]
[1729602640466,0.001652,66954.0,66953.0,0.97249764]
[1729602640613,0.001652,66954.0,66953.0,1.12997157]
[1729602641253,0.001652,66954.0,66953.0,0.95849764]
[1729602641400,0.001652,66954.0,66953.0,1.12997157]
[1729602642007,0.001652,66954.0,66953.0,1.11597157]
[1729602642430,0.001652,66954.0,66953.0,1.12997157]
[1729602643357,0.001652,66954.0,66953.0,1.14397157]
[1729602643771,0.001652,66954.0,66953.0,1.11597157]
[1729602644169,0.001652,66954.0,66953.0,1.14397157]
[1729602645254,0.001652,66955.0,66954.0,0.289356]
[1729602645427,0.001652,66983.0,66973.0,0.37037393]
[1729602645671,0.001652,66983.0,66982.0,0.34876693]
[1729602645870,0.001652,66983.0,66982.0,0.25655776]
[1729602646783,0.001652,66983.0,66982.0,0.40551691]
[1729602647529,0.001652,66983.0,66982.0,0.43351691]
[1729602647736,0.001652,66983.0,66982.0,0.58247606]
[1729602648371,0.001652,66983.0,66982.0,0.50747606]
[1729602650342,0.001652,66983.0,66982.0,0.50247606]
[1729602650544,0.001652,66983.0,66982.0,0.50747606]
[1729602650958,0.001652,66983.0,66982.0,0.50247606]
[1729602651308,0.001652,66983.0,66982.0,0.50747606]
[1729602651504,0.001652,66983.0,66982.0,0.50247606]
[1729602652593,0.001652,66983.0,66982.0,0.50747606]
[1729602652738,0.001652,66983.0,66982.0,0.50247606]
[1729602653134,0.001652,66983.0,66982.0,0.50747606]
[1729602654993,0.001652,66983.0,66982.0,0.35851691]
[1729602655417,0.001652,66983.0,66982.0,0.35351691]
[1729602655622,0.001652,66983.0,66982.0,0.35851691]
[1729602656327,0.001652,66983.0,66982.0,0.35351691]
[1729602656527,0.001652,66983.0,66982.0,0.35851691]
[1729602656962,0.001652,66983.0,66982.0,0.50443222]
[1729602662890,0.001652,66983.0,66982.0,0.33051691]
[1729602663088,0.001652,66983.0,66982.0,0.35351691]
[1729602663291,0.001652,66983.0,66982.0,0.35851691]
[1729602663490,0.001652,66983.0,66982.0,0.45481691]
[1729602663727,0.001652,66983.0,66982.0,0.64441855]
[1729602663952,0.001652,66983.0,66982.0,0.7933777]
[1729602664388,0.001652,66983.0,66982.0,0.8397614]
[1729602664815,0.001652,66983.0,66982.0,0.8417614]
[1729602665844,0.001652,66983.0,66982.0,0.8397614]
[1729602666701,0.001652,66983.0,66982.0,0.84460848]
[1729602668216,0.001652,66983.0,66982.0,0.67000848]
[1729602671038,0.001652,66983.0,66982.0,0.55500848]
[1729602671821,0.001652,66983.0,66982.0,0.38304933]
[1729602672707,0.001652,66983.0,66982.0,0.33666563]
[1729602673260,0.080852,66983.0,66982.0,0.33666563]
[1729602673688,0.080852,66983.0,66982.0,0.18737263]
[1729602673874,0.080852,66983.0,66982.0,0.33666563]
[1729602674572,0.001652,66983.0,66982.0,0.33890477]
[1729602675051,0.001652,66983.0,66982.0,0.32490477]
[1729602675265,0.001652,66983.0,66982.0,0.31090477]
[1729602675479,0.001652,66983.0,66982.0,0.33190477]
[1729602676804,0.001652,66983.0,66982.0,0.50886392]
[1729602677888,0.001652,66983.0,66982.0,0.55542148]
[1729602678306,0.001652,66983.0,66982.0,0.54442148]
[1729602678783,0.001652,66983.0,66982.0,0.55842148]
[1729602679474,0.001652,66983.0,66982.0,0.54842148]
[1729602679643,0.001652,66983.0,66982.0,0.56242148]
[1729602682435,0.001652,66983.0,66982.0,0.56442148]
[1729602682641,0.001652,66983.0,66982.0,0.67442148]
[1729602683279,0.001652,66983.0,66982.0,0.76942148]
[1729602683521,0.001652,66983.0,66982.0,0.75342148]
[1729602684050,0.001652,66983.0,66982.0,0.76742148]
[1729602684742,0.001652,66983.0,66982.0,0.74342148]
[1729602684961,0.001652,66983.0,66982.0,0.76742148]
[1729602685192,0.001652,66983.0,66982.0,0.67242148]
[1729602686122,0.001652,66983.0,66982.0,0.52346233]
[1729602688481,0.001652,66983.0,66982.0,0.51346233]
[1729602689630,0.001652,66983.0,66982.0,0.52346233]
[1729602689889,0.001652,66983.0,66982.0,0.51846233]
[1729602690107,0.001652,66983.0,66982.0,0.51346233]
[1729602690309,0.001652,66983.0,66982.0,0.52346233]
[1729602690831,0.001652,66983.0,66982.0,0.67242148]
[1729602691769,0.001652,66983.0,66982.0,0.67742148]
[1729602692486,0.001652,66983.0,66982.0,0.57742148]
[1729602693715,0.001652,66983.0,66982.0,0.57518234]
[1729602695132,0.001652,66983.0,66982.0,0.57018234]
[1729602695411,0.001652,66983.0,66982.0,0.56518234]
[1729602695644,0.001652,66983.0,66982.0,0.57518234]
[1729602699952,0.001652,66983.0,66982.0,0.64223343]
[1729602700161,0.001652,66983.0,66982.0,0.57518234]
[1729602700815,0.001652,66983.0,66982.0,0.61990866]
[1729602701062,0.001652,66983.0,66982.0,0.57518234]
[1729602702152,0.001652,66983.0,66982.0,0.57018234]
[1729602702364,0.001652,66983.0,66982.0,0.57218234]
[1729602702589,0.001652,66983.0,66982.0,0.56718234]
[1729602702790,0.001652,66983.0,66982.0,0.56518234]
[1729602704140,0.001652,66983.0,66982.0,0.60990866]
[1729602706555,0.001652,66983.0,66982.0,0.71945788]
[1729602706841,0.001652,66983.0,66982.0,0.72145788]
[1729602707278,0.001652,66983.0,66982.0,0.71945788]
[1729602707515,0.001652,66983.0,66982.0,0.67473156]
[1729602707769,0.001652,66983.0,66982.0,0.74378265]
[1729602708238,0.001652,66983.0,66982.0,0.85333187]
[1729602708487,0.001652,66983.0,66982.0,0.95848078]
[1729602708721,0.001652,66983.0,66982.0,0.84893156]
[1729602708970,0.001652,66983.0,66982.0,0.91598265]
[1729602709235,0.001652,66983.0,66982.0,1.13553187]
[1729602709492,0.001652,66983.0,66982.0,1.15788224]
[1729602709996,0.001652,66983.0,66982.0,1.15988224]
[1729602710256,0.001652,66983.0,66982.0,1.1822326]
[1729602710490,0.001652,66983.0,66982.0,1.00853749]
[1729602711218,0.001652,66983.0,66982.0,0.99453749]
[1729602711426,0.001652,66983.0,66982.0,1.02253749]
[1729602711844,0.001652,66983.0,66982.0,1.00853749]
[1729602712261,0.001652,66983.0,66982.0,1.02253749]
[1729602721166,0.001652,66983.0,66982.0,1.14026276]
[1729602721377,0.001652,66983.0,66982.0,1.02850849]
[1729602721590,0.001652,66983.0,66982.0,1.01450849]
[1729602721817,0.001652,66983.0,66982.0,1.00050849]
[1729602722043,0.001652,66983.0,66982.0,1.01450849]
[1729602722299,0.001652,66983.0,66982.0,1.02850849]
[1729602723178,0.001,67000.0,66999.0,0.005]
[1729602723388,0.3181587,67009.0,67008.0,0.177235]
[1729602723625,0.01417675,67009.0,67008.0,0.4973493]
[1729602723836,0.01417675,67009.0,67008.0,0.50981823]
[1729602724060,0.01417675,67009.0,67008.0,0.62913911]
[1729602724688,0.01417675,67009.0,67008.0,0.64113911]
[1729602725573,0.01417675,67009.0,67008.0,0.65213911]
[1729602725810,0.0831,67010.0,67009.0,0.172233]
[1729602726031,0.0831,67010.0,67009.0,0.32119215]
[1729602726289,0.0831,67010.0,67009.0,0.48037569]
[1729602727575,0.0831,67010.0,67009.0,0.49037569]
[1729602727997,0.0831,67010.0,67009.0,0.50137569]
[1729602730656,0.00169,67021.0,67009.0,0.50137569]
[1729602730657,0.0818,67016.0,67015.0,0.14922]
[1729602730813,0.0818,67016.0,67015.0,0.29817915]
[1729602731139,0.0818,67016.0,67015.0,0.41498906]
[1729602731722,0.0818,67016.0,67015.0,0.43798906]
[1729602732261,0.0818,67016.0,67015.0,0.44598906]
[1729602732716,0.0818,67016.0,67015.0,0.45498906]
[1729602733550,0.0818,67016.0,67015.0,0.44698906]
[1729602733748,0.0818,67016.0,67015.0,0.43798906]
[1729602733964,0.0818,67016.0,67015.0,0.44698906]
[1729602734184,0.0818,67016.0,67015.0,0.35036513]
[1729602740688,0.0818,67016.0,67015.0,0.32736513]
[1729602742416,0.19128756,67016.0,67015.0,0.17814513]
[1729602742700,0.54049312,67016.0,67015.0,0.02918598]
[1729602742913,5.17935966,67016.0,67015.0,0.02663833]
[1729602743166,5.3605147,67016.0,67015.0,0.019]
[1729602743371,5.29392705,67016.0,67015.0,0.019]
[1729602743585,5.29392705,67016.0,66998.0,0.2237587]
[1729602743586,0.1755,66999.0,66998.0,0.2237587]
[1729602743789,0.43424256,66999.0,66998.0,0.37271785]
[1729602743992,0.43424256,66999.0,66998.0,0.380465]
[1729602744209,0.324755,66999.0,66998.0,0.380465]
[1729602744449,0.324755,66999.0,66998.0,0.1567063]
[1729602744869,0.1755,66999.0,66998.0,0.1637063]
[1729602745076,0.0806,66999.0,66998.0,0.3129643]
[1729602745283,0.0764,67005.0,67004.0,0.149244]
[1729602745485,0.0764,67005.0,67004.0,0.14895915]
[1729602745692,0.0764,67005.0,67004.0,0.30592415]
[1729602746822,0.0764,67005.0,67004.0,0.15668015]
[1729602747042,0.0764,67005.0,67004.0,0.17068015]
[1729602747261,0.0764,67005.0,67004.0,0.15668015]
[1729602747465,0.0764,67005.0,67004.0,0.16468015]
[1729602747727,0.0764,67005.0,67004.0,0.17368015]
[1729602748169,0.0764,67005.0,67004.0,0.16568015]
[1729602748580,0.0764,67005.0,67004.0,0.16068015]
[1729602748726,0.0764,67005.0,67004.0,0.16168015]
[1729602749654,0.0764,67005.0,67004.0,0.15768015]
[1729602750234,0.0764,67005.0,67004.0,0.30692415]
[1729602750701,0.245333,67010.0,67004.0,0.30692415]
[1729602750702,0.0961,67010.0,67004.0,0.24829734]
[1729602750908,0.1744,67010.0,67007.0,0.149238]
[1729602751115,0.1744,67010.0,67008.0,0.29819415]
[1729602751321,0.1744,67010.0,67008.0,0.15587051]
[1729602753619,0.1744,67010.0,67008.0,0.15687051]
[1729602754038,0.0783,67010.0,67008.0,0.15687051]
[1729602756488,0.0783,67010.0,67008.0,0.00791136]
[1729602756739,0.0783,67010.0,67008.0,0.001]
[1729602756740,0.51437669,67009.0,67008.0,0.001]
[1729602756967,0.75708402,67009.0,67008.0,0.001]
[1729602757144,0.50437669,67009.0,67008.0,0.001]
[1729602757959,0.303476,67007.0,67004.0,0.000825]
[1729602758213,0.149242,67005.0,67004.0,0.14978415]
[1729602759107,0.35014369,67009.0,67004.0,0.16732233]
[1729602759108,0.1789,67009.0,67004.0,0.16732233]
[1729602759321,0.00165,67010.0,67005.0,0.14895915]
[1729602759549,0.00165,67010.0,67008.0,0.001]
[1729602759769,0.00165,67010.0,67009.0,0.14895915]
[1729602759992,0.00165,67010.0,67009.0,0.17333254]
[1729602760412,0.00165,67010.0,67009.0,0.15572073]
[1729602763878,0.150881,67010.0,67009.0,0.15572073]
[1729602764092,0.150881,67010.0,67009.0,0.00676158]
[1729602764305,0.00165,67010.0,67004.0,0.000825]
[1729602764541,0.17124369,67009.0,67006.0,0.2237587]
[1729602764767,0.149236,67008.0,67007.0,0.14895915]
[1729602764987,0.149236,67008.0,67007.0,0.1557378]
[1729602765448,0.17124369,67009.0,67007.0,0.1557378]
[1729602765449,0.32047769,67009.0,67007.0,0.1557378]
[1729602765940,0.149235,67008.0,67007.0,0.1557378]
[1729602766348,0.149235,67008.0,67007.0,0.14895915]
[1729602767148,0.149235,67008.0,67007.0,0.14995915]
[1729602768392,0.32047669,67009.0,67007.0,0.14995915]
[1729602768598,0.32047669,67009.0,67007.0,0.15674286]
[1729602768820,0.32047669,67009.0,67007.0,0.15574286]
[1729602769822,0.32047669,67009.0,67007.0,0.14895915]
[1729602770024,0.32212669,67009.0,67007.0,0.14895915]
[1729602770227,0.150883,67009.0,67008.0,0.00677518]
[1729602770437,0.150883,67009.0,67008.0,0.15573433]
[1729602772017,0.00165,67009.0,67008.0,0.15573433]
[1729602774079,0.26042486,67009.0,67008.0,0.15573433]
[1729602774540,0.26042486,67009.0,67008.0,0.15573414]
[1729602775198,0.26042486,67009.0,67008.0,0.14895915]
[1729602775442,0.26042486,67009.0,67008.0,0.15573336]
[1729602777295,0.26024525,67009.0,67008.0,0.15573336]
[1729602777528,0.149238,67007.0,67006.0,0.000825]
[1729602777761,0.149238,67007.0,67006.0,0.14978415]
[1729602779177,0.149238,67007.0,67006.0,0.15202271]
[1729602782262,0.224836,67008.0,67006.0,0.15202271]
[1729602782526,0.0756,67008.0,67006.0,0.15202271]
[1729602782768,0.0756,67008.0,67007.0,0.0067839]
[1729602782769,0.224835,67008.0,67007.0,0.0067839]
[1729602783721,0.149238,67007.0,67006.0,0.15202271]
[1729602784421,0.12002307,67008.0,67006.0,0.15202271]
[1729602784654,0.26925907,67008.0,67006.0,0.15202271]
[1729602784880,0.149238,67007.0,67006.0,0.15202271]
[1729602785373,0.19366107,67007.0,67006.0,0.15202271]
[1729602785610,0.149238,67007.0,67006.0,0.14978415]
[1729602785839,0.21587261,67007.0,67006.0,0.14978415]
[1729602786509,0.149238,67007.0,67006.0,0.14978415]
[1729602787209,0.149238,67007.0,67006.0,0.15202272]
[1729602787494,0.40231415,67007.0,67006.0,0.15202272]
[1729602788449,0.313468,67007.0,67006.0,0.14978415]
[1729602789190,0.313468,67007.0,67006.0,0.15202237]
[1729602789435,0.06675753,67007.0,67006.0,0.15202237]
[1729602789681,0.06674952,67007.0,67006.0,0.15202237]
[1729602789921,0.21598752,67007.0,67006.0,0.15657665]
[1729602790142,0.21598652,67008.0,67006.0,0.15657665]
[1729602790365,0.21598652,67008.0,67007.0,0.14895915]
[1729602790578,0.21598652,67008.0,67007.0,0.15574312]
[1729602791451,0.21598452,67008.0,67007.0,0.15574312]
[1729602791666,0.06674952,67008.0,67007.0,0.15574312]
[1729602792305,0.149235,67008.0,67007.0,0.15574312]
[1729602792812,0.21599771,67008.0,67007.0,0.15574312]
[1729602793048,0.21599771,67008.0,67007.0,0.15774312]
[1729602793456,0.149235,67008.0,67007.0,0.15774312]
[1729602793668,0.21599771,67008.0,67007.0,0.15774312]
[1729602793886,0.21599771,67008.0,67007.0,0.16074312]
[1729602794713,0.21599669,67008.0,67007.0,0.16074312]
[1729602795363,0.31353013,67008.0,67007.0,0.16074312]
[1729602795576,0.21599686,67008.0,67007.0,0.15395915]
[1729602796585,0.21599686,67008.0,67007.0,0.14895915]
[1729602796847,0.149235,67008.0,67007.0,0.14895915]
[1729602797049,0.149235,67008.0,67007.0,0.15195915]
[1729602797355,0.149235,67008.0,67007.0,0.15873989]
[1729602798179,0.149235,67008.0,67007.0,0.15195915]
[1729602800594,0.149235,67008.0,67007.0,0.15874187]
[1729602801407,0.16314952,67008.0,67007.0,0.15195915]
[1729602801652,0.16314952,67008.0,67007.0,0.003]
[1729602801823,0.46051589,67008.0,67007.0,0.003]
[1729602802051,5.28909165,67008.0,67007.0,0.002]
[1729602802268,0.441838,67007.0,67006.0,1e-06]
[1729602802404,5.05360432,67007.0,67006.0,1e-06]
[1729602802638,0.266242,67005.0,67004.0,0.000825]
[1729602802861,5.25043024,67005.0,67004.0,0.000825]
[1729602803073,5.34700825,67005.0,67004.0,0.000825]
[1729602803742,5.34700825,67005.0,67004.0,0.00060149]
[1729602803946,5.32474645,67005.0,67004.0,0.00060149]
[1729602804173,5.32474645,67005.0,67004.0,0.00160149]
[1729602804550,5.32474645,67005.0,66990.0,0.2237587]
[1729602804551,0.015,66998.0,66990.0,0.2237587]
[1729602804749,0.245158,66998.0,66997.0,0.2237587]
[1729602805054,0.298539,66993.0,66990.0,0.37271785]
[1729602805259,0.25881486,66991.0,66990.0,0.37271785]
[1729602805695,0.25881486,66991.0,66990.0,0.14895915]
[1729602808502,0.33313107,66991.0,66990.0,0.14895915]
[1729602808911,0.25881486,66991.0,66990.0,0.14895915]
[1729602813718,0.29853,66995.0,66990.0,0.14895915]
[1729602813948,0.10954186,66994.0,66991.0,0.14895915]
[1729602814207,0.10954186,66994.0,66991.0,0.15425729]
[1729602814678,0.149271,66992.0,66991.0,0.15425729]
[1729602815131,0.149271,66992.0,66991.0,0.14895915]
[1729602815379,0.149271,66992.0,66991.0,0.15095915]
[1729602815608,0.149271,66992.0,66991.0,0.15295915]
[1729602816322,0.149271,66992.0,66991.0,0.15095915]
[1729602816544,0.149271,66992.0,66991.0,0.14895915]
[1729602831231,0.16318283,66992.0,66991.0,0.14978415]
[1729602834604,0.298529,66995.0,66991.0,0.14978415]
[1729602834923,0.149271,66992.0,66991.0,0.14978415]
[1729602835125,0.149271,66992.0,66991.0,0.32768415]
[1729602835686,0.25881286,66992.0,66991.0,0.14978415]
[1729602836566,0.149271,66992.0,66991.0,0.14978415]
[1729602839773,0.04439243,66995.0,66992.0,0.245471]
[1729602839993,0.298502,67002.0,66996.0,0.1717]
[1729602839994,0.04439243,66997.0,66996.0,0.1717]
[1729602840209,0.11098109,67002.0,66996.0,0.1717]
[1729602840210,0.04439243,67000.0,66997.0,0.1192]
[1729602840426,0.04604243,67004.0,66999.0,0.447766]
[1729602840644,0.04604243,67004.0,67000.0,0.39551215]
[1729602840645,0.04439243,67003.0,67000.0,0.39551215]
[1729602840863,0.00165,67004.0,67000.0,0.39551215]
[1729602840864,0.00165,67004.0,67001.0,0.224551]
[1729602841121,0.00165,67004.0,67002.0,0.14895915]
[1729602841564,0.06658865,67003.0,67002.0,0.14895915]
[1729602841770,0.00165,67004.0,67002.0,0.14895915]
[1729602842651,0.00165,67004.0,67003.0,0.28394591]
[1729602842870,0.00165,67004.0,67003.0,0.45590506]
[1729602843299,0.00165,67004.0,67003.0,0.53140506]
[1729602844775,0.00165,67004.0,67003.0,0.53640506]
[1729602844983,0.00165,67004.0,67003.0,0.49570615]
[1729602845207,0.00165,67004.0,67003.0,0.49870615]
[1729602845852,0.00165,67004.0,67003.0,0.49570615]
[1729602846275,0.00165,67004.0,67003.0,0.50170615]
[1729602856672,0.00165,67004.0,67003.0,1.01670615]
[1729602856883,0.00165,67004.0,67003.0,1.1656653]
[1729602857317,0.00165,67004.0,67003.0,0.50170615]
[1729602857525,0.00165,67004.0,67003.0,0.49670615]
[1729602857734,0.00165,67004.0,67003.0,0.50470615]
[1729602857968,0.00165,67004.0,67003.0,0.51870615]
[1729602858398,0.00165,67004.0,67003.0,0.49070615]
[1729602858602,0.00165,67004.0,67003.0,0.50770615]